Cogmind - Beta 14 @@@ ROGUE MODE // 2024.08.23 @ 20:42:47 Player: SpaceWalrus Result: Destroyed by G-47 Trooper with Particle Gun Performance ------------- Evolutions (0) 0 Regions Visited (2) 400 Robots Destroyed (29) 145 Value Destroyed (594) 594 Prototype IDs (0) 0 Alien Tech Used (0) 0 Bonus (0) 0 TOTAL SCORE: 1139 Bonus ------- None Cogmind --------- Core Integrity 0/250 Matter 156/300 Energy 125/125 System Corruption 7% Temperature Cool (36) Movement Rolling (80) Location -10/Mines Parts ------- > --- POWER (1) -------- Light Ion Engine > --- PROPULSION (2) --- Wheel Wheel > --- UTILITY (2) ------ Structural Scanner Signal Interpreter > --- WEAPON (2) ------- Light Cannon Missile Launcher > --- INVENTORY (5) ---- Small Storage Unit Targeting Computer Hardened Medium Armor Plating Hacking Suite EM Shotgun Peak State ------------ > --- POWER ------------ Light Nuclear Core > --- PROPULSION ------- Improved Aluminum Leg Improved Aluminum Leg > --- UTILITY ---------- Small Storage Unit Signal Interpreter > --- WEAPON ----------- EM Shotgun EM Shotgun > --- INVENTORY -------- Structural Scanner Visual Processing Unit Targeting Computer ECM Suite Hacking Suite Light Assault Rifle Light Cannon Mace [Rating: 14] Favorites ----------- Power Light Nuclear Core Engine Ion Engine Power Core Light Nuclear Core Propulsion Improved Aluminum Leg Leg Improved Aluminum Leg Wheel Wheel Hover Unit Hover Unit Utility Signal Interpreter Device Structural Scanner Storage Small Storage Unit Processor Signal Interpreter Weapon Light Cannon Energy Gun EM Shotgun Ballistic Gun Light Assault Rifle Ballistic Cannon Light Cannon Launcher Missile Launcher Build | -11 -10 -10 ------- Run | Yrd Mat Min Slots Evolved . | . . . Power . | . . . Propulsion . | . . . Utility . | . . . Weapon . | . . . Parts Attached 31 | 6 17 8 Power 5 | 1 2 2 Engine 4 | 1 1 2 Core 1 | . 1 . Reactor . | . . . Propulsion 10 | 2 5 3 Treads . | . . . Leg 6 | 2 3 1 Wheel 2 | . . 2 Hover 2 | . 2 . Flight . | . . . Utility 4 | 1 2 1 Device 2 | . 1 1 Storage 1 | 1 . . Processor 1 | . 1 . Hackware . | . . . Protection . | . . . Artifact . | . . . Weapon 12 | 2 8 2 Energy Gun 2 | . 2 . Energy Cannon . | . . . Ballistic Gun 5 | 2 3 . Ballistic Cannon 3 | . 2 1 Launcher 2 | . 1 1 Special Weapon . | . . . Impact Weapon . | . . . Slashing Weapon . | . . . Piercing Weapon . | . . . Special Melee Weapon . | . . . Unidentified Prototypes . | . . . Corrupted Parts 2 | . . 2 System Corruption 6 | . . 6 Parts Lost 7 | . 6 1 Power 3 | . 2 1 Propulsion 1 | . 1 . Utility 1 | . 1 . Weapon 2 | . 2 . Highest Loss Streak 5 | . 5 1 To Critical Strikes . | . . . Average Slot Usage (%) 88 | . 90 85 Engine 5 | . 3 9 Core 4 | . 7 . Leg 19 | . 22 13 Wheel 1 | . . 5 Hover 1 | . 2 . Device 6 | . 2 13 Storage 9 | . 14 . Processor 11 | . 9 14 Ballistic Gun 9 | . 14 . Ballistic Cannon 11 | . 10 13 Launcher 5 | . . 13 Peak Build Rating 14 | 6 14 12 Average Rating 8 | 4 8 9 On Entrance 6 | . 6 12 Naked Turns . | . . . Heaviest Build 16 | 13 16 15 Greatest Support 26 | 20 26 26 Greatest Overweight (x) 1 | . 1 1 Average Overweight (x) . | . . . Largest Inventory Capacity 8 | 8 8 8 Average Capacity 7 | 7 8 5 Most Carried 8 | 5 8 8 Average Carried 4 | 2 5 5 Final Capacity 8 | 8 8 5 Final Carried 8 | 3 8 5 Class Distribution -------------------- 92% | Mutant 7% | Scavenger-Mutant Dominant Class ---------------- Mutant | -10/Materials Mutant | -10/Mines Resources | -11 -10 -10 ----------- Run | Yrd Mat Min Matter Collected 900 | 306 456 138 Remotely . | . . . Salvage Created 688 | 136 465 87 Parts 54 | 9 39 6 Haulers Intercepted 2 | . 2 . Recyclers Shooed 1 | . 1 . Parts Field Recycled . | . . . Retrieved Matter . | . . . Parts Self-Destructed . | . . . Prevented . | . . . Kills | -11 -10 -10 ------- Run | Yrd Mat Min Combat Hostiles Destroyed 14 | . 11 3 Guns 6 | . 6 . Cannons 2 | . 2 . AOE 6 | . 3 3 Classes Destroyed 9 | 2 6 1 Worker 1 | . . 1 Builder 1 | . 1 . Tunneler 5 | 3 . 2 Hauler 2 | . 2 . Recycler 2 | 1 1 . Operator 1 | . 1 . Watcher 3 | . 3 . Swarmer 3 | . 3 . Grunt 11 | . 8 3 Best Kill Streak 5 | 2 5 2 Combat Bots Only 4 | . 4 2 Max Kills in Single Turn 2 | 1 2 2 Gunslinging . | . . . Exploded 1 | . 1 1 Melee . | . . . Uniques/NPCs Destroyed . | . . . Combat | -11 -10 -10 -------- Run | Yrd Mat Min Hostile Shots Fired 101 | . 95 6 Missed 25 | . 25 . Damage Taken 1038 | . 836 202 Core 261 | . 147 114 Absorbed by Shields . | . . . Core Remaining (%) 100 | 100 . . Volleys Fired 104 | 14 70 20 Largest 2 | 2 2 2 Hottest 90 | 40 90 71 Shots Fired 172 | 28 118 26 Gun 114 | 28 86 . Cannon 44 | . 24 20 Launcher 14 | . 8 6 Special . | . . . Kinetic 146 | 28 98 20 Thermal . | . . . Explosive 14 | . 8 6 Electromagnetic 12 | . 12 . Robot Hit Streak 10 | 10 8 7 Robot Miss Streak 8 | 3 8 3 Penetration Max . | . . . Secondary Targets 1 | . 1 . Max Gunslinging Chain 1 | . 1 . Shots Hit Robots 99 | 20 65 14 Core Hits 48 | 7 32 9 Critical Kills . | . . . Critical Parts Destroyed . | . . . Critical Strikes . | . . . Melee Attacks . | . . . Impact . | . . . Slashing . | . . . Piercing . | . . . Sneak Attacks . | . . . Combat Hostiles . | . . . Follow-up Attacks . | . . . Damage Inflicted 1947 | 220 1234 493 Guns 783 | 220 563 . Cannons 456 | . 265 191 Explosions 708 | . 406 302 Melee . | . . . Ramming . | . . . Kinetic 1135 | 220 724 191 Thermal . | . . . Explosive 708 | . 406 302 Electromagnetic 104 | . 104 . Impact . | . . . Slashing . | . . . Piercing . | . . . Highest Corruption 7 | . . 7 Average Corruption 6 | . . 6 Corruption Purged . | . . . Corruption Blocked . | . . . Effects 17 | . . 17 Message Errors 4 | . . 4 Matter Fused 5 | . . 5 Heat Flow Errors 4 | . . 4 Energy Discharges 1 | . . 1 Data Loss (minor) 1 | . . 1 Data Loss (major) 2 | . . 2 Overload Shots . | . . . Overflow Damage 16 | . 16 . Projectiles 7 | . 7 . Explosions 9 | . 9 . Melee . | . . . Knockbacks 4 | . 1 3 Impact . | . . . Kinetic 4 | . 1 3 Secondary . | . . . Self-Inflicted Damage 90 | . 11 79 Shots 4 | . 1 3 Rammed . | . . . Targets Rammed . | . . . Kicked . | . . . Crushed . | . . . Highest Temperature 226 | . 200 226 Average Temperature 48 | . 32 81 Received Heat Transfer 471 | . 417 54 Effects 3 | . . 3 Interference 3 | . . 3 Siege Activations . | . . . Robots Corrupted . | . . . Combat Hostiles . | . . . Parts Fried . | . . . Impact Corruptions . | . . . Robots Melted . | . . . Combat Hostiles . | . . . Parts Melted . | . . . Heat Transferred . | . . . Parts Sabotaged . | . . . Parts Stolen . | . . . Parts Stripped . | . . . Power Chain Reactions . | . . . Alert | -11 -10 -10 ------- Run | Yrd Mat Min Peak Influence 243 | 20 243 129 Initial 39 | . 13 39 Average 81 | 9 101 60 Maximum Alert Level 1 | . 1 . Low Security (%) 91 | 100 86 100 Level 1 8 | . 13 . Level 2 . | . . . Level 3 . | . . . Level 4 . | . . . Level 5 . | . . . High Security . | . . . Max Security . | . . . Squads Dispatched 1 | . 1 . Investigation . | . . . Extermination . | . . . Reinforcement 1 | . 1 . Assault . | . . . Garrison . | . . . Intercept . | . . . Searches Triggered . | . . . Construction Impeded . | . . . Haulers Reinforced . | . . . Active Scanning Responses . | . . . Cargo Convoy Interrupts . | . . . Stealth | -11 -10 -10 --------- Run | Yrd Mat Min Distress Signals 2 | . 2 . Communications Jammed . | . . . Distress Signals . | . . . Times Spotted 24 | . 20 4 Peak Tracking Total 5 | . 5 2 Tactical Retreats 1 | . 1 . Traps | -11 -10 -10 ------- Run | Yrd Mat Min Traps Triggered 2 | . . 2 Indirectly . | . . . Trap Hack Attempts . | . . . Triggered . | . . . Disarmed . | . . . Reprogrammed . | . . . Reused . | . . . Traps Extracted . | . . . Installed . | . . . Triggered . | . . . Machines | -11 -10 -10 ---------- Run | Yrd Mat Min Machines Disabled 3 | . 1 2 Max in Single Turn 1 | . 1 1 Machines Repaired . | . . . Machines Dismantled . | . . . Machines Sabotaged . | . . . Overloaded Fab Kills . | . . . Hacking | -11 -10 -10 --------- Run | Yrd Mat Min Machines Accessed 5 | . 3 2 Terminals 3 | . 2 1 Fabricators . | . . . Repair Stations 1 | . 1 . Recycling Units . | . . . Scanalyzers . | . . . Garrison Access . | . . . Total Hacks 6 | . 3 3 Successful 2 | . 1 1 Failed 4 | . 2 2 Catastrophic . | . . . Database Lockouts . | . . . Manual . | . . . Terminals 4 | . 2 2 Fabricators . | . . . Repair Stations 1 | . 1 . Recycling Units . | . . . Scanalyzers . | . . . Garrison Access . | . . . Terminal Hacks 2 | . 1 1 Open Door 1 | . . 1 Hauler Manifests 1 | . 1 . Fabricator Hacks . | . . . Repair Station Hacks . | . . . Recycling Unit Hacks . | . . . Scanalyzer . | . . . Garrison Access Hacks . | . . . Unauthorized Hacks . | . . . Terminals . | . . . Fabricators . | . . . Repair Stations . | . . . Recycling Units . | . . . Scanalyzers . | . . . Garrison Access . | . . . Data Cores Recovered . | . . . Used . | . . . Hacking Detections 2 | . 1 1 Full Trace Events . | . . . Feedback Events . | . . . Feedback Blocked . | . . . Robot Schematics Acquired . | . . . Robots Built . | . . . Authchips . | . . . Time . | . . . Total Robot Build Rating . | . . . Part Schematics Acquired . | . . . Parts Built . | . . . Authchips . | . . . Time . | . . . Total Part Build Rating . | . . . Parts Repaired . | . . . Time . | . . . Parts Recycled . | . . . Recycled Matter . | . . . Retrieved Matter . | . . . Retrieved Components . | . . . Parts Scanalyzed . | . . . Part Schematics Acquired . | . . . Parts Damaged . | . . . Bothacking | -11 -10 -10 ------------ Run | Yrd Mat Min Used RIF Installer . | . . . Robots Hacked . | . . . Non-combat . | . . . Combat . | . . . Robot Hacks Applied . | . . . Relay Couplers Released . | . . . Fabnet Peak Effective % . | . . . Robots Rewired . | . . . Allies Hacked . | . . . Hacks Repelled . | . . . Allies | -11 -10 -10 -------- Run | Yrd Mat Min Total Allies . | . . . Largest Group . | . . . Highest-Rated Group . | . . . Highest-Rated Ally . | . . . Total Orders . | . . . Ally Attacks . | . . . Total Damage . | . . . Kills . | . . . Allies Corrupted . | . . . Allies Melted . | . . . Intel | -11 -10 -10 ------- Run | Yrd Mat Min Robot Analysis Total . | . . . Derelict Logs Recovered 1 | . . 1 Drone Launches . | . . . Drone Recoveries . | . . . Exploration | -11 -10 -10 ------------- Run | Yrd Mat Min Turns Passed 1745 | 124 1038 583 Spaces Moved 1158 | 68 682 408 Core 16 | 16 . . Treads . | . . . Legs 921 | 52 622 247 Wheels 161 | . . 161 Hover 60 | . 60 . Flight . | . . . Fastest Speed 50 | 50 116 80 Average Speed 121 | 103 119 127 Slowest Speed 190 | 120 190 190 Overloaded Moves . | . . . Propulsion Burnouts . | . . . Robots Hopped . | . . . Cave-ins Triggered . | . . . Exploration Rate (%) 51 | 3 82 70 Regions Visited 2 Branch Regions 1 Pre-discovered Areas . | . . . Known Exits Taken 1 | . 1 . Unknown Exits Taken 1 | 1 . . Scrap Searched 1 | . . 1 Spaces Dug . | . . . Terrain Destroyed 83 | . 25 58 Melee . | . . . Projectile . | . . . AOE 83 | . 25 58 Terrain Rammed . | . . . Walls Destroyed . | . . . Machines Disabled . | . . . Actions | -11 -10 -10 --------- Run | Yrd Mat Min Total 1333 | 96 793 444 Wait . | . . . Move 1156 | 67 681 408 Hop . | . . . Pick Up 28 | 9 18 1 Fast Attach 7 | . 1 6 Attach 16 | 6 10 . Detach . | . . . Swap 8 | . 6 2 Drop 14 | . 7 7 Fire 104 | 14 70 20 Melee . | . . . Ram . | . . . Kick . | . . . Crush . | . . . Escape Stasis . | . . . Rewire . | . . . Trap . | . . . Miscellaneous . | . . . Route ------- -11/Scrapyard -10/Materials (discovered 4 exits: *Mat x3 / *Min) -10/Mines (discovered 1 exit: *Mat) History --------- Turn | Location | Event 41 | -11/Scrapyard | Discovered new exit (range 15) 125 | -11/Scrapyard | Entered Materials 309 | -10/Materials | Build established: Mutant 350 | -10/Materials | Discovered new exit (range 16) 387 | -10/Materials | Core integrity fell below 50% 398 | -10/Materials | Lost 5 parts (2p1n1u1w) 433 | -10/Materials | Discovered new exit (range 15) 503 | -10/Materials | Identified exit to Materials 874 | -10/Materials | Discovered exit to Materials (range 13) 1153 | -10/Materials | Discovered new exit (range 7) 1162 | -10/Materials | Identified exit to Mines 1163 | -10/Materials | Entered Mines 1169 | -10/Mines | Met a Derelict who couldn't figure out how to use a Trap Extractor 1322 | -10/Mines | Core integrity fell below 20% 1613 | -10/Mines | Learned Materials stockpile data 1738 | -10/Mines | Discovered exit to Materials (range 13) 1746 | -10/Mines | Destroyed by G-47 Trooper with Particle Gun Last Messages --------------- System corrupted: Heat flow error (+246). Overheating: System interference. Structural Scanner temporarily disabled. Connecting with Terminal... Acquired 1 matter. MZOEK3OTMQKKZR5V6WL:BRE<2B5E T-07 Excavator knocked back. System corrupted: Heat flow error (+235). Acquired 1 matter. K-01 Serf destroyed. Acquired 1 matter. Acquired 16 matter. Dropped Imp. Aluminum Leg. Acquired Wheel. System corrupted: Matter fused (-7). Acquired 4 matter. EXIT=FOUND: MATERIALS T-07 Excavator destroyed. G-34 Mercenary destroyed. Pressure Siphon disabled. Map ----- +----------------------------------------------------+ | ?????????????????????????????????????????????????? | | ?????????????????????????????????????????????????? | | ?????????????????????????????????????????????????? | | ?????????????????????????????????????????????????? | | ?????????????????????????????????????????????????? | | ?????????????????????????????????????????????????? | | ?????????????????????????????????????????????????? | | ?????????????????????????????????????????????????? | | ?????????????????????????????????????????????????? | | ?????????????????????????????????????????????????? | | ?????????????????????????????????????????????????? | | ?????????????????????????????????????????????????? | | ?????????????????????????????????????????????????? | | ?????????????????????????????????????????????????? | | ?????????????????????????????????????????????????? | | ?????????????????????????????????????????????????? | | #####????????????????????? ###???????????????????? | | #########????????????????? ####??????????????????? | | !/ #######???????????##### ##??????????????????? | | /!### ###??????????######## ??????????????????? | | ![### ##???????###### ### ##??????????????????? | | /## ##??????###### ###?????????????????? | | ## ###??????### ## ###?????????????????? | | ##???????## ## ?????????????????? | | ##??????### ## ######??????????????? | | ###??????## @## ######??????????????? | | ###????#### g ##??????????????? | | ###???#### ##??????????????? | | ###??## #### ##??????????????? | | ##??## " #### ##??????????????? | | ##??## """ ##??????????????? | | ##??## < ### ##??????????????? | | # ##???? ! #### #### ##??????????????? | | # ##?????? % ##### ####### ##??????????????? | | ## ##?????? ????############ ##??????????????? | | ### ###?????????????#####????## ##??????????????? | | ### ###????????????????????#### ######????????### | | ######????????????????##### #######???????### | | ###########?## ??????????### ## ###????##### | | ###### ###### ##????????## ###???##### | | ##### ##### ###???????## ###???## | | #### ####?????## ##???## ## | | ### ##??## ####????## ##???## ## | | ####??## ####???## ## ##???## ## | | #####??????? ###???### #### ##???## ## | | ############?# ##???### ###### ######## ### | | ####?########### ##????## ###?############ ### | | ####??### ##### ###???## ##???####### ##? | | ###???## ### #####?## ##??????#### ####### | | ######## ####### ##??????#### ####### | +----------------------------------------------------+ Best States ------------- Heat Dissipation 25 Energy Generation 14 Energy Capacity 250 Matter Stores 300 Matter Capacity 300 Sight Range 16 Terrain Scan Density 10 Evasion (%) 55 Item Schematics ----------------- None Robot Schematics ------------------ None Fabricated ------------ Nothing Alien Tech Used ----------------- None Achievements -------------- None Challenges ------------ None Game ------ Seed GlidesysMyomerCapacitor Manual? 0 Play Time 00:14:52 Cumulative 26.9 hours Start 2024.08.23 @ 20:31:19 End 2024.08.23 @ 20:42:47 Sessions 1 Manual Loads 0 Difficulty Rogue Special Mode None Game No. 33 Rogue 33 Adventurer 0 Explorer 0 Win Type - Total 0 Types 0/0/0/0/0/0/0/0/0 Lore% 15 Gallery% 33 Achievement% 22 Wizard Run 0 Options --------- Layout 1 ASCII 0 Keyboard 0 Movement Numpad Keybinds 0 Fullscreen 1 Font 24/Smallcaps Map View 50x40 Zoom Use 0% Tactical HUD 0 Map Filters NONE Filters NONE Steam 1 RUN: 56d29ed6-eaab-4f90-8fb1-8eedf54afaa3